fUSD/lending_fUSD_20250811
["ID","MTS","AMOUNT","RATE_DAILY","PERIOD"]
[378491693,1754886660664,-400.0,0.00017546,2]
[378491694,1754886660681,-400.0,0.00017546,2]
[378491695,1754886660700,-649.48,0.00017546,2]
[378491696,1754886660720,-1680.21,0.00017546,2]
[378491697,1754886660735,-1049.17,0.00017546,2]
[378491698,1754886660753,-400.0,0.00017546,2]
[378491699,1754886660772,-400.0,0.00017546,2]
[378491700,1754886660790,-951.39,0.00017546,2]
[378491701,1754886660808,-454.86,0.00017546,2]
[378491702,1754886660826,-824.89,0.00017546,2]
[378491703,1754886660844,-407.63,0.00017546,2]
[378491704,1754886660860,-585.0,0.00017546,2]
[378491705,1754886660873,-400.0,0.00017546,2]
[378491706,1754886660892,-400.0,0.00017546,2]
[378491707,1754886660904,-1455.85,0.00017546,2]
[378491708,1754886660923,-400.0,0.00017546,2]
[378491709,1754886660935,-400.0,0.00017546,2]
[378491710,1754886660950,-769.24,0.00017546,2]
[378491711,1754886660965,-2199.58,0.00017546,2]
[378491712,1754886660979,-400.0,0.00017546,2]
[378491713,1754886660994,-655.83,0.00017546,2]
[378491714,1754886661009,-400.0,0.00017546,2]
[378491715,1754886661023,-668.14,0.00017546,2]
[378491716,1754886661037,-2114.03,0.00017546,2]
[378491717,1754886661053,-410.79,0.00017546,2]
[378491718,1754886661067,-717.01,0.00017546,2]
[378491719,1754886661083,-526.86,0.00017546,2]
[378491720,1754886661098,-1612.96,0.00017546,2]
[378491721,1754886661113,-1228.52,0.00017546,2]
[378491722,1754886661127,-400.0,0.00017546,2]
[378491723,1754886661142,-2955.4,0.00017546,2]
[378491724,1754886661157,-400.0,0.00017546,2]
[378491725,1754886661173,-2031.05,0.00017546,2]
[378491726,1754886661188,-882.39,0.00017546,2]
[378491727,1754886661203,-400.0,0.00017546,2]
[378491728,1754886661218,-1330.79,0.00017546,2]
[378491729,1754886661233,-1272.39,0.00017546,2]
[378491730,1754886661249,-715.05,0.00017546,2]
[378491731,1754886661264,-8173.14,0.00017546,2]
[378491732,1754886661279,-1781.66,0.00017546,2]
[378491733,1754886661294,-477.68,0.00017546,2]
[378491734,1754886661315,-1122.75,0.00017546,2]
[378491735,1754886661331,-1331.68,0.00017546,2]
[378491736,1754886661352,-888.75,0.00017546,2]
[378491737,1754886661366,-400.0,0.00017546,2]
[378491738,1754886661381,-400.0,0.00017546,2]
[378491739,1754886661396,-400.0,0.00017546,2]
[378491740,1754886661410,-238.40311478,0.00017546,2]
[378491741,1754886661425,-2038.29,0.00017546,2]
[378491742,1754886661440,-403.27423138,0.00017546,2]
[378491743,1754886661454,-554.01,0.00017546,2]
[378491744,1754886661469,-651.43,0.00017546,2]
[378491745,1754886661483,-1369.36,0.00017546,2]
[378491746,1754886661497,-1339.24,0.00017546,2]
[378491747,1754886661512,-401.78474596,0.00017546,2]
[378491748,1754886661527,-1803.47,0.00017546,2]
[378491749,1754886661541,-1113.52,0.00017546,2]
[378491750,1754886661556,-400.0,0.00017546,2]
[378491751,1754886661570,-2663.6,0.00017546,2]
[378491752,1754886661588,-400.0,0.00017546,2]
[378491753,1754886661603,-3713.7,0.00017546,2]
[378491754,1754886661617,-1153.98,0.00017546,2]
[378491755,1754886661634,-1944.28,0.00017546,2]
[378491756,1754886661649,-400.0,0.00017546,2]
[378491757,1754886661664,-401.5654409,0.00017546,2]
[378491758,1754886661681,-400.0,0.00017546,2]
[378491759,1754886661695,-1435.98,0.00017546,2]
[378491760,1754886661710,-400.0,0.00017546,2]
[378491761,1754886661725,-400.0,0.00017546,2]
[378491762,1754886661741,-400.0,0.00017546,2]
[378491763,1754886661756,-2243.73,0.00017546,2]
[378491764,1754886661772,-3812.9,0.00017546,2]
[378491765,1754886661787,-400.0,0.00017546,2]
[378491766,1754886661803,-400.0,0.00017546,2]
[378491767,1754886661819,-592.95,0.00017546,2]
[378491768,1754886661835,-404.8419443,0.00017546,2]
[378491769,1754886661849,-400.0,0.00017546,2]
[378491770,1754886661865,-400.0,0.00017546,2]
[378491771,1754886661881,-400.0,0.00017546,2]
[378491772,1754886661895,-1891.0,0.00017546,2]
[378491773,1754886661911,-400.0,0.00017546,2]
[378491774,1754886661927,-400.0,0.00017546,2]
[378491775,1754886661943,-1087.1,0.00017546,2]
[378491776,1754886661958,-1589.93,0.00017546,2]
[378491777,1754886661973,-400.0,0.00017546,2]
[378491778,1754886661988,-1124.67,0.00017546,2]
[378491779,1754886662004,-401.03034303,0.00017546,2]
[378491780,1754886662018,-2878.68,0.00017546,2]
[378491781,1754886662034,-495.91,0.00017546,2]
[378491782,1754886662048,-400.0,0.00017546,2]
[378491783,1754886662063,-950.56,0.00017546,2]
[378491784,1754886662077,-1307.49,0.00017546,2]
[378491785,1754886662092,-402.40374285,0.00017546,2]
[378491786,1754886662108,-2695.27,0.00017546,2]
[378491787,1754886662123,-856.38,0.00017546,2]
[378491788,1754886662139,-739.41,0.00017546,2]
[378491789,1754886662153,-1363.59,0.00017546,2]
[378491790,1754886662168,-855.45,0.00017546,2]
[378491791,1754886662183,-812.2,0.00017546,2]
[378491792,1754886662198,-5196.27,0.00017546,2]
[378491793,1754886662212,-400.0,0.00017546,2]
[378491794,1754886662227,-5397.17,0.00017546,2]
[378491795,1754886662242,-1486.27,0.00017546,2]
[378491796,1754886662256,-1285.96,0.00017546,2]
[378491797,1754886662274,-2798.96,0.00017546,2]
[378491798,1754886662288,-1895.73,0.00017546,2]
[378491799,1754886662309,-806.53,0.00017546,2]
[378491800,1754886662326,-400.0,0.00017546,2]
[378491801,1754886662341,-1274.2,0.00017546,2]
[378491802,1754886662356,-1651.76,0.00017546,2]
[378491803,1754886662370,-400.0,0.00017546,2]
[378491804,1754886662384,-1256.2,0.00017546,2]
[378491805,1754886662400,-635.75,0.00017546,2]
[378491806,1754886662414,-849.98,0.00017546,2]
[378491807,1754886662429,-400.0,0.00017546,2]
[378491808,1754886662444,-507.68,0.00017546,2]
[378491809,1754886662458,-3620.19,0.00017546,2]
[378491810,1754886662473,-538.52,0.00017546,2]
[378491811,1754886662487,-400.0,0.00017546,2]
[378491812,1754886662502,-1287.03,0.00017546,2]
[378491813,1754886662516,-539.41,0.00017546,2]
[378491814,1754886662530,-675.45,0.00017546,2]
[378491815,1754886662546,-1583.18,0.00017546,2]
[378491816,1754886662560,-701.46,0.00017546,2]
[378491817,1754886662575,-400.0,0.00017546,2]
[378491818,1754886662594,-400.0,0.00017546,2]
[378491819,1754886662608,-300.0,0.00017546,2]
[378491820,1754886662623,-307.20797227,0.00017546,2]
[378491821,1754886662638,-400.0,0.00017547,2]
[378491822,1754886662653,-400.0,0.00017547,2]
[378491823,1754886662669,-406.85,0.00017547,2]
[378491824,1754886662684,-400.0,0.00017547,2]
[378491825,1754886662698,-400.0,0.00017547,2]
[378491826,1754886662713,-405.67339013,0.00017547,2]
[378491827,1754886662728,-711.84,0.00017547,2]
[378491828,1754886662743,-400.0,0.00017547,2]
[378491829,1754886662756,-400.0,0.00017547,2]
[378491830,1754886662770,-400.0,0.00017547,2]
[378491831,1754886662784,-400.0,0.00017547,2]
[378491832,1754886663098,-524.02,0.00017547,2]
[378491833,1754886663138,-400.0,0.00017547,2]
[378491834,1754886663152,-604.75,0.00017547,2]
[378491835,1754886663162,-599.12,0.00017547,2]
[378491836,1754886663172,-400.0,0.00017547,2]
[378491837,1754886663182,-400.0,0.00017547,2]
[378491838,1754886663191,-982.92,0.00017547,2]
[378491839,1754886663201,-400.0,0.00017547,2]
[378491840,1754886663211,-400.0,0.00017547,2]
[378491841,1754886663221,-766.83,0.00017547,2]
[378491842,1754886663230,-400.0,0.00017547,2]
[378491843,1754886663240,-400.0,0.00017547,2]
[378491844,1754886663250,-442.27,0.00017547,2]
[378491845,1754886663260,-502.43,0.00017547,2]
[378491846,1754886663269,-443.75,0.00017547,2]
[378491847,1754886663279,-400.0,0.00017547,2]
[378491848,1754886663288,-593.67,0.00017547,2]
[378491849,1754886663298,-400.0,0.00017547,2]
[378491850,1754886663308,-400.0,0.00017547,2]
[378491851,1754886663317,-400.0,0.00017547,2]
[378491852,1754886663327,-400.0,0.00017547,2]
[378491853,1754886663337,-400.0,0.00017547,2]
[378491854,1754886663346,-400.0,0.00017547,2]
[378491855,1754886663356,-427.68242627,0.00017547,2]
[378491856,1754886663365,-404.96504553,0.00017547,2]
[378491857,1754886663374,-435.63740966,0.00017547,2]
[378491858,1754886663384,-400.0,0.00017547,2]
[378491859,1754886663393,-400.0,0.00017547,2]
[378491860,1754886663403,-400.0,0.00017547,2]
[378491861,1754886663412,-984.1,0.00017547,2]
[378491862,1754886663422,-400.0,0.00017547,2]
[378491863,1754886663432,-400.0,0.00017547,2]
[378491864,1754886663442,-400.0,0.00017547,2]
[378491865,1754886663451,-400.0,0.00017547,2]
[378491866,1754886663461,-530.59,0.00017547,2]
[378491867,1754886663470,-400.0,0.00017547,2]
[378491868,1754886663480,-365.99347099,0.00017547,2]
[378491869,1754886663489,-408.13,0.00017547,2]
[378491870,1754886663499,-796.23,0.00017547,2]
[378491871,1754886663508,-400.0,0.00017547,2]
[378491872,1754886663517,-459.01,0.00017547,2]
[378491873,1754886663526,-1031.28,0.00017547,2]
[378491874,1754886663536,-400.0,0.00017547,2]
[378491875,1754886663546,-490.33,0.00017547,2]
[378491876,1754886663556,-562.38,0.00017547,2]
[378491877,1754886663565,-400.0,0.00017547,2]
[378491878,1754886663575,-589.46,0.00017547,2]
[378491879,1754886663589,-400.0,0.00017547,2]
[378491880,1754886663598,-435.55,0.00017547,2]
[378491881,1754886663608,-400.0,0.00017547,2]
[378491882,1754886663617,-498.17,0.00017547,2]
[378491883,1754886663628,-400.0,0.00017547,2]
[378491884,1754886663638,-400.0,0.00017547,2]
[378491885,1754886663647,-498.63,0.00017547,2]
[378491886,1754886663658,-400.0,0.00017547,2]
[378491887,1754886663668,-402.87478159,0.00017547,2]
[378491888,1754886663678,-409.56,0.00017547,2]
[378491889,1754886663687,-400.0,0.00017547,2]
[378491890,1754886663697,-567.63,0.00017547,2]
[378491891,1754886663706,-690.83,0.00017547,2]
[378491892,1754886663716,-400.0,0.00017547,2]
[378491893,1754886663725,-400.0,0.00017547,2]
[378491894,1754886663734,-400.0,0.00017547,2]
[378491895,1754886663744,-400.0,0.00017547,2]
[378491896,1754886663753,-207.41319656,0.00017547,2]
[378491897,1754886663762,-710.53,0.00017547,2]
[378491898,1754886663772,-436.05,0.00017547,2]
[378491899,1754886663782,-400.0,0.00017547,2]
[378491900,1754886663791,-400.0,0.00017547,2]
[378491901,1754886663801,-400.0,0.00017547,2]
[378491903,1754886663810,-400.0,0.00017547,2]
[378491904,1754886663819,-400.0,0.00017547,2]
[378491905,1754886663829,-400.0,0.00017547,2]
[378491906,1754886663838,-400.0,0.00017547,2]
[378491907,1754886663849,-400.0,0.00017547,2]
[378491908,1754886663858,-400.0,0.00017547,2]
[378491909,1754886663868,-400.0,0.00017547,2]
[378491910,1754886663877,-400.0,0.00017547,2]
[378491911,1754886663886,-502.26,0.00017547,2]
[378491912,1754886663895,-400.0,0.00017547,2]
[378491913,1754886663905,-400.0,0.00017547,2]
[378491914,1754886663914,-400.0,0.00017547,2]
[378491915,1754886663924,-404.02463376,0.00017547,2]
[378491916,1754886663934,-564.3,0.00017547,2]
[378491917,1754886663943,-400.0,0.00017547,2]
[378491918,1754886663953,-400.0,0.00017547,2]
[378491919,1754886663962,-400.0,0.00017547,2]
[378491920,1754886663972,-400.0,0.00017547,2]
[378491921,1754886663983,-400.0,0.00017547,2]
[378491922,1754886663992,-400.0,0.00017547,2]
[378491923,1754886664002,-402.66277957,0.00017547,2]
[378491924,1754886664012,-400.0,0.00017547,2]
[378491925,1754886664021,-400.0,0.00017547,2]
[378491926,1754886664031,-400.0,0.00017547,2]
[378491927,1754886664041,-400.0,0.00017547,2]
[378491928,1754886664051,-400.0,0.00017547,2]
[378491929,1754886664060,-404.96646543,0.00017547,2]
[378491930,1754886664069,-638.71,0.00017547,2]
[378491931,1754886664079,-400.0,0.00017547,2]
[378491932,1754886664088,-512.9,0.00017547,2]
[378491933,1754886664098,-400.0,0.00017547,2]
[378491934,1754886664108,-1168.39,0.00017547,2]
[378491935,1754886664118,-816.18,0.00017547,2]
[378491936,1754886664127,-400.0,0.00017547,2]
[378491937,1754886664137,-400.0,0.00017547,2]
[378491938,1754886664146,-400.0,0.00017547,2]
[378491939,1754886664156,-1319.27,0.00017547,2]
[378491940,1754886664166,-400.0,0.00017547,2]
[378491941,1754886664179,-400.0,0.00017547,2]
[378491942,1754886664189,-848.1,0.00017547,2]
[378491943,1754886664199,-1000.0,0.00017547,2]
[378491944,1754886664208,-452.23,0.00017547,2]
[378491945,1754886664218,-763.33,0.00017547,2]
[378491946,1754886664227,-400.0,0.00017547,2]
[378491947,1754886664237,-400.0,0.00017547,2]
[378491948,1754886664246,-400.0,0.00017547,2]
[378491949,1754886664256,-400.0,0.00017547,2]
[378491950,1754886664265,-402.55998138,0.00017547,2]
[378491951,1754886664275,-400.0,0.00017547,2]
[378491952,1754886664284,-400.0,0.00017547,2]
[378491953,1754886664293,-400.0,0.00017547,2]
[378491954,1754886664302,-534.83,0.00017547,2]
[378491955,1754886664311,-1432.31,0.00017547,2]
[378491956,1754886664321,-400.0,0.00017547,2]
[378491957,1754886664330,-400.0,0.00017547,2]
[378491958,1754886664340,-400.0,0.00017547,2]
[378491959,1754886664349,-400.0,0.00017547,2]
[378491960,1754886664359,-1096.29,0.00017547,2]
[378491961,1754886664368,-481.17,0.00017547,2]
[378491962,1754886664378,-500.1,0.00017547,2]
[378491963,1754886664387,-400.0,0.00017547,2]
[378491964,1754886664396,-400.0,0.00017547,2]
[378491965,1754886664405,-1173.96,0.00017547,2]
[378491966,1754886664415,-400.0,0.00017547,2]
[378491967,1754886664427,-402.28,0.00017547,2]
[378491968,1754886664436,-400.0,0.00017547,2]
[378491969,1754886664445,-400.0,0.00017547,2]
[378491970,1754886664454,-400.0,0.00017547,2]
[378491971,1754886664464,-1368.54,0.00017547,2]
[378491972,1754886664473,-400.0,0.00017547,2]
[378491973,1754886664482,-752.63,0.00017547,2]
[378491974,1754886664492,-400.0,0.00017547,2]
[378491975,1754886664501,-538.48,0.00017547,2]
[378491976,1754886664510,-400.0,0.00017547,2]
[378491977,1754886664520,-673.3,0.00017547,2]
[378491978,1754886664529,-400.0,0.00017547,2]
[378491979,1754886664539,-400.0,0.00017547,2]
[378491980,1754886664548,-1433.44,0.00017547,2]
[378491981,1754886664558,-400.0,0.00017547,2]
[378491982,1754886664567,-400.0,0.00017547,2]
[378491983,1754886664576,-400.0,0.00017547,2]
[378491984,1754886664590,-400.0,0.00017547,2]
[378491985,1754886664599,-1225.04,0.00017547,2]
[378491986,1754886664609,-740.04,0.00017547,2]
[378491987,1754886664618,-1059.77,0.00017547,2]
[378491988,1754886664630,-400.0,0.00017547,2]
[378491989,1754886664639,-467.48973886,0.00017547,2]
[378491990,1754886664648,-400.0,0.00017547,2]
[378491991,1754886664659,-400.0,0.00017547,2]
[378491992,1754886664669,-400.0,0.00017547,2]
[378491993,1754886664679,-400.0,0.00017547,2]
[378491994,1754886664688,-400.0,0.00017547,2]
[378491995,1754886664698,-1292.83,0.00017547,2]
[378491996,1754886664707,-2940.45,0.00017547,2]
[378491997,1754886664716,-455.0,0.00017547,2]
[378491998,1754886664725,-403.37411496,0.00017547,2]
[378491999,1754886664735,-400.0,0.00017547,2]
[378492000,1754886664744,-400.0,0.00017547,2]
[378492001,1754886664753,-400.0,0.00017547,2]
[378492002,1754886664762,-416.50957661,0.00017547,2]
[378492003,1754886664771,-400.0,0.00017547,2]
[378492004,1754886664781,-520.0,0.00017547,2]
[378492005,1754886664790,-400.0,0.00017547,2]
[378492006,1754886664799,-426.08153707,0.00017547,2]
[378492007,1754886664808,-704.09,0.00017547,2]
[378492008,1754886664818,-1244.19,0.00017547,2]
[378492009,1754886664827,-400.0,0.00017547,2]
[378492010,1754886664836,-400.0,0.00017547,2]
[378492011,1754886664846,-462.2676948,0.00017547,2]
[378492012,1754886664855,-963.23,0.00017547,2]
[378492013,1754886664864,-400.0,0.00017547,2]
[378492014,1754886664873,-505.67,0.00017547,2]
[378492015,1754886664883,-503.46,0.00017547,2]
[378492016,1754886664891,-368.75387287,0.00017547,2]
[378492017,1754886664901,-400.0,0.00017547,2]
[378492018,1754886664910,-1351.37,0.00017547,2]
[378492019,1754886664920,-325.72494073,0.00017547,2]
[378492020,1754886664930,-1548.12,0.00017547,2]
[378492021,1754886664939,-400.0,0.00017547,2]
[378492022,1754886664949,-400.0,0.00017547,2]
[378492023,1754886664959,-400.0,0.00017547,2]
[378492024,1754886664970,-439.78,0.00017547,2]
[378492025,1754886664979,-808.08,0.00017547,2]
[378492026,1754886664989,-2199.24,0.00017547,2]
[378492027,1754886664998,-1408.18,0.00017547,2]
[378492028,1754886665007,-400.0,0.00017547,2]
[378492029,1754886665018,-400.0,0.00017547,2]
[378492030,1754886665030,-753.75,0.00017547,2]
[378492031,1754886665040,-400.0,0.00017547,2]
[378492032,1754886665050,-412.53805641,0.00017547,2]
[378492033,1754886665059,-400.0,0.00017547,2]
[378492034,1754886665069,-533.78,0.00017547,2]
[378492035,1754886665079,-400.0,0.00017547,2]
[378492036,1754886665090,-400.0,0.00017547,2]
[378492037,1754886665100,-516.94,0.00017547,2]
[378492038,1754886665110,-400.0,0.00017547,2]
[378492039,1754886665119,-1025.15,0.00017547,2]
[378492040,1754886665129,-259.87094072,0.00017547,2]
[378492041,1754886665138,-400.0,0.00017547,2]
[378492042,1754886665148,-400.0,0.00017547,2]
[378492043,1754886665157,-1428.05,0.00017547,2]
[378492044,1754886665167,-1684.69,0.00017547,2]
[378492045,1754886665177,-400.0,0.00017547,2]
[378492046,1754886665187,-403.61991792,0.00017547,2]
[378492047,1754886665197,-403.97442033,0.00017547,2]
[378492048,1754886665206,-1041.68,0.00017547,2]
[378492049,1754886665215,-400.0,0.00017547,2]
[378492050,1754886665225,-404.45095026,0.00017547,2]
[378492051,1754886665234,-1024.18,0.00017547,2]
[378492052,1754886665244,-400.0,0.00017547,2]
[378492053,1754886665253,-400.0,0.00017547,2]
[378492054,1754886665263,-1016.3,0.00017547,2]
[378492055,1754886665272,-400.0,0.00017547,2]
[378492056,1754886665282,-819.85,0.00017547,2]
[378492057,1754886665292,-400.0,0.00017547,2]
[378492058,1754886665301,-400.0,0.00017547,2]
[378492059,1754886665311,-1791.52,0.00017547,2]
[378492060,1754886665320,-448.18,0.00017547,2]
[378492061,1754886665330,-400.0,0.00017547,2]
[378492062,1754886665339,-973.65,0.00017547,2]
[378492063,1754886665348,-718.62,0.00017547,2]
[378492064,1754886665358,-454.71,0.00017547,2]
[378492065,1754886665367,-401.75914511,0.00017547,2]
[378492066,1754886665376,-538.94,0.00017547,2]
[378492067,1754886665386,-420.94,0.00017547,2]
[378492068,1754886665396,-400.0,0.00017547,2]
[378492069,1754886665405,-420.20507559,0.00017547,2]
[378492070,1754886665415,-400.0,0.00017547,2]
[378492071,1754886665426,-400.0,0.00017547,2]
[378492072,1754886665435,-400.0,0.00017547,2]
[378492073,1754886665444,-634.12,0.00017547,2]
[378492074,1754886665454,-400.0,0.00017547,2]
[378492075,1754886665463,-708.01,0.00017547,2]
[378492076,1754886665472,-556.52,0.00017547,2]
[378492077,1754886665482,-400.0,0.00017547,2]
[378492078,1754886665491,-400.0,0.00017547,2]
[378492079,1754886665501,-1061.75,0.00017547,2]
[378492080,1754886665510,-400.0,0.00017547,2]
[378492081,1754886665520,-400.0,0.00017547,2]
[378492082,1754886665529,-400.0,0.00017547,2]
[378492083,1754886665539,-400.0,0.00017547,2]
[378492084,1754886665548,-400.0,0.00017547,2]
[378492085,1754886665558,-914.47,0.00017547,2]
[378492086,1754886665568,-400.0,0.00017547,2]
[378492087,1754886665580,-2216.94,0.00017547,2]
[378492088,1754886665591,-519.50888545,0.00017547,2]
[378492089,1754886665600,-400.0,0.00017547,2]
[378492090,1754886665610,-504.42,0.00017547,2]
[378492091,1754886665620,-400.0,0.00017547,2]
[378492092,1754886665630,-852.11,0.00017547,2]
[378492093,1754886665639,-400.0,0.00017547,2]
[378492094,1754886665649,-929.86,0.00017547,2]
[378492095,1754886665658,-2132.0,0.00017547,2]
[378492096,1754886665668,-1043.97,0.00017547,2]
[378492097,1754886665679,-1784.51,0.00017547,2]
[378492098,1754886665688,-400.0,0.00017547,2]
[378492099,1754886665697,-400.0,0.00017547,2]
[378492100,1754886665707,-1951.39,0.00017547,2]
[378492101,1754886665717,-428.39709549,0.00017547,2]
[378492102,1754886665726,-400.0,0.00017547,2]
[378492103,1754886665735,-2489.93,0.00017547,2]
[378492104,1754886665745,-466.31,0.00017547,2]
[378492105,1754886665755,-1184.34,0.00017547,2]
[378492106,1754886665764,-400.0,0.00017547,2]
[378492107,1754886665773,-933.41,0.00017547,2]
[378492108,1754886665783,-937.87,0.00017547,2]
[378492109,1754886665792,-673.61,0.00017547,2]
[378492110,1754886665801,-400.0,0.00017547,2]
[378492111,1754886665811,-400.0,0.00017547,2]
[378492112,1754886665820,-400.0,0.00017547,2]
[378492113,1754886665830,-354.91387081,0.00017547,2]
[378492114,1754886665839,-2511.12,0.00017547,2]
[378492115,1754886665849,-400.0,0.00017547,2]
[378492116,1754886665859,-1694.6,0.00017547,2]
[378492117,1754886665868,-400.0,0.00017547,2]
[378492118,1754886665878,-400.0,0.00017547,2]
[378492119,1754886665887,-400.0,0.00017547,2]
[378492120,1754886665897,-400.0,0.00017547,2]
[378492121,1754886665906,-471.5,0.00017547,2]
[378492122,1754886665915,-400.0,0.00017547,2]
[378492123,1754886665926,-400.0,0.00017547,2]
[378492124,1754886665936,-1957.86,0.00017547,2]
[378492125,1754886665945,-844.51,0.00017547,2]
[378492126,1754886665955,-410.81343716,0.00017547,2]
[378492127,1754886665964,-3867.29,0.00017547,2]
[378492128,1754886665973,-400.0,0.00017547,2]
[378492129,1754886665983,-420.28,0.00017547,2]
[378492130,1754886665992,-400.0,0.00017547,2]
[378492131,1754886666002,-400.0,0.00017547,2]
[378492132,1754886666012,-1922.57,0.00017547,2]
[378492133,1754886666021,-2073.51,0.00017547,2]
[378492134,1754886666031,-2662.56,0.00017547,2]
[378492135,1754886666041,-400.0,0.00017547,2]
[378492136,1754886666050,-400.0,0.00017547,2]
[378492137,1754886666060,-400.0,0.00017547,2]
[378492138,1754886666069,-649.45,0.00017547,2]
[378492139,1754886666079,-965.39,0.00017547,2]
[378492140,1754886666088,-2303.33,0.00017547,2]
[378492141,1754886666098,-1938.9,0.00017547,2]
[378492142,1754886666109,-400.0,0.00017547,2]
[378492143,1754886666119,-4737.79,0.00017547,2]
[378492144,1754886666128,-443.09,0.00017547,2]
[378492145,1754886666137,-1611.6,0.00017547,2]
[378492146,1754886666146,-400.0,0.00017547,2]
[378492147,1754886666156,-430.26781181,0.00017547,2]
[378492148,1754886666165,-620.19,0.00017547,2]
[378492149,1754886666178,-400.0,0.00017547,2]
[378492150,1754886666187,-400.0,0.00017547,2]
[378492151,1754886666197,-494.05,0.00017547,2]
[378492152,1754886666207,-400.0,0.00017547,2]
[378492153,1754886666218,-400.0,0.00017547,2]
[378492154,1754886666228,-3411.58,0.00017547,2]
[378492155,1754886666238,-400.0,0.00017547,2]
[378492156,1754886666247,-1364.24,0.00017547,2]
[378492157,1754886666257,-400.0,0.00017547,2]
[378492158,1754886666267,-173.73863782,0.00017547,2]
[378492159,1754886666277,-400.0,0.00017547,2]
[378492160,1754886666287,-400.0,0.00017547,2]
[378492161,1754886666298,-400.0,0.00017547,2]
[378492162,1754886666308,-400.0,0.00017547,2]
[378492163,1754886666318,-928.56,0.00017547,2]
[378492164,1754886666509,-734.37,0.00017547,2]
[378492165,1754886666545,-400.0,0.00017547,2]
[378492166,1754886666555,-407.69652657,0.00017547,2]
[378492167,1754886666565,-1639.26,0.00017547,2]
[378492168,1754886666575,-453.0,0.00017547,2]
[378492169,1754886666589,-400.0,0.00017547,2]
[378492170,1754886666600,-964.97,0.00017547,2]
[378492171,1754886666609,-400.0,0.00017547,2]
[378492172,1754886666619,-2514.27,0.00017547,2]
[378492173,1754886666628,-400.0,0.00017547,2]
[378492174,1754886666637,-400.0,0.00017547,2]
[378492175,1754886666646,-400.0,0.00017547,2]
[378492176,1754886666655,-426.85,0.00017547,2]
[378492177,1754886666666,-1646.59,0.00017547,2]
[378492178,1754886666679,-566.96,0.00017547,2]
[378492179,1754886666689,-489.19,0.00017547,2]
[378492180,1754886666699,-4613.12,0.00017547,2]
[378492181,1754886666708,-400.0,0.00017547,2]
[378492182,1754886666718,-990.1,0.00017547,2]
[378492183,1754886666727,-1627.5,0.00017547,2]
[378492184,1754886666736,-400.0,0.00017547,2]
[378492185,1754886666746,-1052.13,0.00017547,2]
[378492186,1754886666756,-1864.85,0.00017547,2]
[378492187,1754886666765,-1421.55,0.00017547,2]
[378492188,1754886666775,-237.43995428,0.00017547,2]
[378492189,1754886666784,-400.0,0.00017547,2]
[378492190,1754886666793,-400.0,0.00017547,2]
[378492191,1754886666802,-667.49,0.00017547,2]
[378492192,1754886666812,-400.0,0.00017547,2]
[378492193,1754886666821,-2035.68,0.00017547,2]